[Event "7th Iberoamerican-ch 2019"]
[Site "Linares"]
[Date "2019.08.16"]
[Round "7.12"]
[White "Merario Alarcon, Andres"]
[Black "Matamoros Franco, Carlos S."]
[Result "1/2-1/2"]
[ECO "D37"]
[WhiteElo "2392"]
[BlackElo "2498"]
[Annotator "ChessBase"]
[PlyCount "57"]
[EventDate "2019.08.10"]
[EventType "swiss"]
[EventCountry "ESP"]
[SourceTitle "playchess.com"]
[Source "ChessBase"]
[SourceQuality "1"]
[TimeControl "5400+30"]

1. d4 {[%emt 0:02:17]} Nf6 {[%emt 0:00:00]} 2. c4 {[%emt 0:00:04]} e6 {[%emt 0:00:00]} 3. Nf3 {[%emt 0:00:15]} d5 {[%emt 0:00:14]} 4. Nc3 {[%emt 0:00:09]} Be7 {[%emt 0:00:12]} 5. Bf4 {[%emt 0:00:12]} O-O {[%emt 0:00:15]} 6. e3 {[%emt 0:00:05]} b6 {[%emt 0:00:29]} 7. Be2 {[%emt 0:00:06]} dxc4 {[%emt 0:00:48]} 8. Bxc4 {[%emt 0:00:09]} Ba6 {[%emt 0:00:12]} 9. Bxa6 {[%emt 0:00:18]} Nxa6 {[%emt 0:00:05]} 10. Qe2 {[%emt 0:00:16]} Qc8 {[%emt 0:00:43]} 11. e4 {[%emt 0:00:11]} c5 {[%emt 0:02:18]} 12. O-O {[%emt 0:00:25]} Re8 {[%emt 0:06:22]} 13. Rfd1 {[%emt 0:05:04]} Qb7 {[%emt 0:14:22]} 14. Bg5 {[%emt 0:02:57]} cxd4 {[%emt 0:28:48]} 15. Nxd4 {[%emt 0:03:01]} Nc5 {[%emt 0:02:41]} 16. f3 {[%emt 0:09:41]} a6 {[%emt 0:01:04]} 17. b4 {[%emt 0:16:21]} Ncd7 {[%emt 0:01:15]} 18. b5 {[%emt 0:00:31]} h6 {[%emt 0:21:39]} 19. Be3 {[%emt 0:04:56]} axb5 {[%emt 0:03:28]} 20. Ndxb5 {[%emt 0:01:07]} Rec8 {[%emt 0:00:50]} 21. Bd4 {[%emt 0:07:03]} Rc6 {[%emt 0:01:54]} 22. e5 {[%emt 0:05:33]} Ne8 {[%emt 0:00:02]} 23. Ne4 {[%emt 0:05:17]} Nc5 {[%emt 0:05:42]} 24. Bxc5 {[%emt 0:06:29]} bxc5 {[%emt 0:01:26]} 25. Qc4 {[%emt 0:01:25]} Rca6 {[%emt 0:01:02]} 26. a4 {[%emt 0:01:10]} Qc6 {[%emt 0:00:51]} 27. f4 {[%emt 0:04:01]} Nc7 {[%emt 0:01:11]} 28. Nec3 {[%emt 0:00:59]} Nd5 29. Nxd5 {[%emt 0:08:24]} 1/2-1/2

[Event "7th Iberoamerican-ch 2019"]
[Site "Linares"]
[Date "2019.08.16"]
[Round "7.13"]
[White "Moreno Ruiz, Javier"]
[Black "Plazuelo Pascual, Juan"]
[Result "1/2-1/2"]
[ECO "D36"]
[WhiteElo "2473"]
[BlackElo "2411"]
[Annotator "ChessBase"]
[PlyCount "62"]
[EventDate "2019.08.10"]
[EventType "swiss"]
[EventCountry "ESP"]
[SourceTitle "playchess.com"]
[Source "ChessBase"]
[SourceQuality "1"]
[TimeControl "5400+30"]

1. d4 {[%emt 0:00:11]} d5 {[%emt 0:00:00]} 2. c4 {[%emt 0:00:16]} e6 {[%emt 0:00:00]} 3. Nc3 {[%emt 0:00:12]} Nf6 {[%emt 0:00:08]} 4. cxd5 {[%emt 0:00:10]} exd5 {[%emt 0:00:23]} 5. Bg5 {[%emt 0:00:14]} c6 {[%emt 0:00:25]} 6. Qc2 {[%emt 0:00:50]} h6 {[%emt 0:02:21]} 7. Bh4 {[%emt 0:00:29]} Be6 {[%emt 0:00:12]} 8. e3 {[%emt 0:00:26]} Nbd7 {[%emt 0:00:22]} 9. Bd3 {[%emt 0:02:13]} g5 {[%emt 0:00:27]} 10. Bg3 {[%emt 0:00:34]} Nh5 {[%emt 0:00:14]} 11. Nf3 {[%emt 0:01:12]} Nxg3 {[%emt 0:01:50]} 12. hxg3 {[%emt 0:01:02]} Bg7 {[%emt 0:03:12]} 13. O-O {[%emt 0:10:13]} Qe7 {[%emt 0:30:58]} 14. e4 {[%emt 0:07:55]} dxe4 {[%emt 0:03:26]} 15. Bxe4 {[%emt 0:00:07]} g4 {[%emt 0:13:01]} 16. Nh4 {[%emt 0:09:09]} Bxd4 {[%emt 0:03:21]} 17. Nf5 {[%emt 0:32:38]} Qc5 {[%emt 0:02:17]} 18. Rfd1 {[%emt 0:00:16]} Be5 {[%emt 0:01:10]} 19. Rac1 {[%emt 0:00:11]} O-O-O {[%emt 0:05:20]} 20. Qe2 {[%emt 0:14:21]} Kb8 {[%emt 0:01:58]} 21. Nd5 {[%emt 0:01:36]} Qb5 {[%emt 0:03:53]} 22. Qxb5 {[%emt 0:00:51]} cxb5 {[%emt 0:00:03]} 23. b3 {[%emt 0:00:40]} h5 {[%emt 0:04:21]} 24. Nfe3 Rc8 {[%emt 0:08:05]} 25. Bf5 {[%emt 0:06:46]} Rxc1 {[%emt 0:00:59]} 26. Rxc1 {[%emt 0:00:02]} Rc8 {[%emt 0:00:18]} 27. Rd1 {[%emt 0:01:21]} Nf8 {[%emt 0:04:02]} 28. Nf4 {[%emt 0:03:15]} Bxf4 {[%emt 0:05:03]} 29. gxf4 {[%emt 0:00:02]} a6 {[%emt 0:01:06]} 30. g3 {[%emt 0:00:20]} Re8 {[%emt 0:01:34]} 31. Bxe6 {[%emt 0:00:35]} fxe6 {[%emt 0:00:07]} 1/2-1/2

[Event "7th Iberoamerican-ch 2019"]
[Site "Linares"]
[Date "2019.08.16"]
[Round "7.14"]
[White "Cruz, Cristhian"]
[Black "Lianes Garcia, Marcos"]
[Result "1-0"]
[ECO "A00"]
[WhiteElo "2559"]
[BlackElo "2347"]
[Annotator "ChessBase"]
[PlyCount "73"]
[EventDate "2019.08.10"]
[EventType "swiss"]
[EventCountry "ESP"]
[SourceTitle "playchess.com"]
[Source "ChessBase"]
[SourceQuality "1"]
[TimeControl "5400+30"]

1. g3 {[%emt 0:02:11]} e5 {[%emt 0:02:30]} 2. c4 {[%emt 0:00:17]} Nf6 {[%emt 0:01:06]} 3. Bg2 {[%emt 0:00:11]} c6 {[%emt 0:00:21]} 4. d4 {[%emt 0:00:21]} e4 {[%emt 0:01:58]} 5. Nc3 {[%emt 0:00:06]} d5 {[%emt 0:00:23]} 6. Bg5 {[%emt 0:00:27]} Bb4 {[%emt 0:03:37]} 7. cxd5 {[%emt 0:01:15]} cxd5 {[%emt 0:00:52]} 8. Rc1 {[%emt 0:00:17]} Nc6 {[%emt 0:12:17]} 9. Nh3 {[%emt 0:01:57]} h6 {[%emt 0:12:19]} 10. Bxf6 {[%emt 0:00:10]} Qxf6 {[%emt 0:00:13]} 11. Nf4 {[%emt 0:03:33]} Be6 {[%emt 0:02:22]} 12. O-O {[%emt 0:01:16]} Bxc3 {[%emt 0:02:07]} 13. bxc3 {[%emt 0:00:45]} g5 {[%emt 0:14:33]} 14. Nxe6 {[%emt 0:00:45]} Qxe6 {[%emt 0:00:03]} 15. c4 {[%emt 0:09:47]} O-O-O {[%emt 0:06:10]} 16. cxd5 {[%emt 0:02:41]} Rxd5 {[%emt 0:03:16]} 17. e3 {[%emt 0:04:34]} g4 {[%emt 0:03:13]} 18. Qb3 {[%emt 0:02:42]} Re8 {[%emt 0:03:58]} 19. Rc3 {[%emt 0:02:09]} Kb8 {[%emt 0:05:12]} 20. Rb1 {[%emt 0:05:29]} Na5 {[%emt 0:00:48]} 21. Qc2 {[%emt 0:01:05]} f5 {[%emt 0:02:11]} 22. Rc1 {[%emt 0:04:50]} Nc6 {[%emt 0:09:32]} 23. Bf1 {[%emt 0:01:15]} Ra5 {[%emt 0:00:19]} 24. Qb1 {[%emt 0:04:13]} Rc8 {[%emt 0:03:49]} 25. Bb5 {[%emt 0:02:33]} Ka8 {[%emt 0:06:51]} 26. a4 {[%emt 0:00:53]} Rb8 {[%emt 0:01:05]} 27. Rc5 {[%emt 0:06:34]} Ne7 {[%emt 0:00:59]} 28. Qb4 {[%emt 0:10:39]} Qb6 {[%emt 0:00:09]} 29. Re5 {[%emt 0:07:44]} Nc6 {[%emt 0:00:14]} 30. Rxc6 {[%emt 0:00:40]} bxc6 {[%emt 0:00:20]} 31. Qxa5 {[%emt 0:00:05]} cxb5 {[%emt 0:00:57]} 32. Rxb5 {[%emt 0:00:34]} Qc6 {[%emt 0:00:44]} 33. Rxf5 {[%emt 0:00:44]} Rb1+ {[%emt 0:00:50]} 34. Kg2 {[%emt 0:00:05]} Qc1 {[%emt 0:00:19]} 35. Qd5+ {[%emt 0:00:55]} Kb8 {[%emt 0:00:04]} 36. Rf8+ {[%emt 0:00:36]} Kc7 {[%emt 0:00:07]} 37. Rf7+ {[%emt 0:00:07]} 1-0

[Event "7th Iberoamerican-ch 2019"]
[Site "Linares"]
[Date "2019.08.16"]
[Round "7.15"]
[White "Matnadze, Ana"]
[Black "Fier, Alexandr"]
[Result "1/2-1/2"]
[ECO "A49"]
[WhiteElo "2363"]
[BlackElo "2558"]
[Annotator "ChessBase"]
[PlyCount "61"]
[EventDate "2019.08.10"]
[EventType "swiss"]
[EventCountry "ESP"]
[SourceTitle "playchess.com"]
[Source "ChessBase"]
[SourceQuality "1"]
[TimeControl "5400+30"]

1. d4 {[%emt 0:00:00]} Nf6 {[%emt 0:00:00]} 2. Nf3 {[%emt 0:00:00]} g6 {[%emt 0:00:00]} 3. g3 {[%emt 0:00:00]} Bg7 {[%emt 0:00:00]} 4. Bg2 {[%emt 0:00:00]} O-O {[%emt 0:00:00]} 5. O-O {[%emt 0:00:03]} d5 {[%emt 0:00:00]} 6. c4 {[%emt 0:00:45]} dxc4 {[%emt 0:00:00]} 7. Na3 {[%emt 0:00:04]} c3 {[%emt 0:00:00]} 8. bxc3 {[%emt 0:00:05]} c5 {[%emt 0:00:03]} 9. e3 {[%emt 0:00:08]} Nc6 {[%emt 0:00:03]} 10. Qe2 {[%emt 0:00:33]} Bf5 {[%emt 0:00:05]} 11. Rd1 {[%emt 0:00:46]} Qb6 {[%emt 0:00:05]} 12. Nc4 {[%emt 0:02:12]} Qa6 {[%emt 0:00:05]} 13. Bf1 {[%emt 0:00:31]} Rfd8 {[%emt 0:02:16]} 14. a4 {[%emt 0:03:41]} cxd4 {[%emt 0:10:01]} 15. exd4 {[%emt 0:02:44]} Be6 {[%emt 0:02:32]} 16. Ba3 {[%emt 0:04:47]} Nd5 {[%emt 0:06:19]} 17. Qe1 {[%emt 0:10:34]} Bh3 {[%emt 0:08:27]} 18. Be2 {[%emt 0:06:11]} b6 {[%emt 0:12:37]} 19. Nd6 {[%emt 0:06:39]} Qa5 {[%emt 0:00:04]} 20. Nxf7 {[%emt 0:11:03]} Kxf7 {[%emt 0:00:32]} 21. Ng5+ {[%emt 0:00:06]} Kg8 {[%emt 0:04:11]} 22. Nxh3 {[%emt 0:00:13]} Qxc3 {[%emt 0:00:42]} 23. Qxc3 {[%emt 0:04:55]} Nxc3 {[%emt 0:00:03]} 24. Bc4+ {[%emt 0:00:05]} Kh8 {[%emt 0:00:06]} 25. Ng5 {[%emt 0:01:26]} Rxd4 {[%emt 0:00:26]} 26. Nf7+ {[%emt 0:02:17]} Kg8 {[%emt 0:00:05]} 27. Rxd4 {[%emt 0:00:56]} Nxd4 {[%emt 0:00:08]} 28. Ng5+ {[%emt 0:17:30]} Kh8 {[%emt 0:00:26]} 29. Nf7+ {[%emt 0:00:05]} Kg8 {[%emt 0:00:02]} 30. Ng5+ {[%emt 0:00:04]} Kh8 {[%emt 0:00:04]} 31. Nf7+ {[%emt 0:00:05]} 1/2-1/2

[Event "7th Iberoamerican-ch 2019"]
[Site "Linares"]
[Date "2019.08.16"]
[Round "7.16"]
[White "Martinez Duany, Lelys Stanley"]
[Black "Domingo Nunez, Ruben"]
[Result "1-0"]
[ECO "B10"]
[WhiteElo "2526"]
[BlackElo "2345"]
[Annotator "ChessBase"]
[PlyCount "101"]
[EventDate "2019.08.10"]
[EventType "swiss"]
[EventCountry "ESP"]
[SourceTitle "playchess.com"]
[Source "ChessBase"]
[SourceQuality "1"]
[TimeControl "5400+30"]

1. e4 {[%emt 0:00:00]} c6 {[%emt 0:00:04]} 2. d3 {[%emt 0:00:32]} g6 {[%emt 0:04:11]} 3. Nf3 {[%emt 0:00:27]} Bg7 {[%emt 0:00:43]} 4. g3 {[%emt 0:00:14]} d5 {[%emt 0:02:45]} 5. Nbd2 {[%emt 0:00:09]} e5 {[%emt 0:06:08]} 6. Bg2 {[%emt 0:00:07]} Ne7 {[%emt 0:01:25]} 7. O-O {[%emt 0:00:09]} O-O {[%emt 0:00:32]} 8. Re1 {[%emt 0:03:11]} Qc7 {[%emt 0:12:45]} 9. Qe2 {[%emt 0:06:59]} Nd7 {[%emt 0:12:23]} 10. b3 {[%emt 0:01:23]} d4 {[%emt 0:09:50]} 11. Bb2 {[%emt 0:02:20]} c5 {[%emt 0:00:34]} 12. c3 {[%emt 0:00:04]} dxc3 {[%emt 0:02:26]} 13. Bxc3 {[%emt 0:00:06]} b6 {[%emt 0:02:45]} 14. Nc4 {[%emt 0:01:42]} Ba6 {[%emt 0:00:56]} 15. Bh3 {[%emt 0:03:42]} Nc6 {[%emt 0:05:26]} 16. Rac1 {[%emt 0:01:00]} Rae8 {[%emt 0:00:54]} 17. a3 {[%emt 0:01:43]} Bxc4 {[%emt 0:17:19]} 18. dxc4 {[%emt 0:01:35]} Nd4 {[%emt 0:00:46]} 19. Qd3 {[%emt 0:01:27]} Re7 {[%emt 0:09:36]} 20. Bb2 {[%emt 0:05:48]} f5 {[%emt 0:02:23]} 21. Bxd4 {[%emt 0:03:09]} cxd4 {[%emt 0:00:33]} 22. b4 {[%emt 0:00:25]} Nf6 {[%emt 0:03:52]} 23. Nd2 {[%emt 0:01:01]} Bh6 {[%emt 0:00:09]} 24. Bg2 {[%emt 0:06:08]} Qd7 {[%emt 0:02:39]} 25. c5 {[%emt 0:01:15]} fxe4 {[%emt 0:00:41]} 26. Nxe4 {[%emt 0:03:45]} Bxc1 {[%emt 0:00:35]} 27. Rxc1 {[%emt 0:00:12]} Nxe4 {[%emt 0:00:37]} 28. Bxe4 {[%emt 0:00:07]} Kg7 {[%emt 0:00:31]} 29. c6 {[%emt 0:00:12]} Qd6 {[%emt 0:00:05]} 30. Kg2 {[%emt 0:03:57]} Ref7 {[%emt 0:00:50]} 31. Rc2 {[%emt 0:00:23]} Re7 {[%emt 0:00:34]} 32. h4 {[%emt 0:00:16]} h5 {[%emt 0:00:26]} 33. f3 {[%emt 0:01:42]} Qf6 {[%emt 0:00:29]} 34. Qd2 {[%emt 0:02:06]} Rc8 {[%emt 0:00:29]} 35. a4 {[%emt 0:00:34]} Rcc7 {[%emt 0:00:38]} 36. b5 {[%emt 0:00:14]} Qd6 {[%emt 0:00:25]} 37. a5 {[%emt 0:00:11]} bxa5 {[%emt 0:00:29]} 38. Qxa5 {[%emt 0:00:08]} Qf6 {[%emt 0:00:03]} 39. Qd2 {[%emt 0:00:31]} Re8 {[%emt 0:00:41]} 40. Rc5 {[%emt 0:00:57]} Rd8 {[%emt 0:00:19]} 41. Bd3 {[%emt 0:00:56]} a6 {[%emt 0:00:58]} 42. Qa5 {[%emt 0:00:54]} Rf7 {[%emt 0:00:30]} 43. Be4 {[%emt 0:00:10]} d3 {[%emt 0:00:32]} 44. c7 {[%emt 0:00:14]} Rd4 {[%emt 0:00:29]} 45. Rc6 {[%emt 0:00:50]} d2 {[%emt 0:00:17]} 46. Rxf6 {[%emt 0:01:11]} d1=Q {[%emt 0:00:28]} 47. Rxg6+ {[%emt 0:00:43]} Kh7 {[%emt 0:00:11]} 48. Rf6+ {[%emt 0:00:21]} Rxe4 {[%emt 0:01:05]} 49. Rxf7+ {[%emt 0:00:09]} Kg6 {[%emt 0:00:12]} 50. fxe4 {[%emt 0:00:06]} Kxf7 {[%emt 0:00:34]} 51. Qa2+ {[%emt 0:00:07]} 1-0

[Event "7th Iberoamerican-ch 2019"]
[Site "Linares"]
[Date "2019.08.16"]
[Round "7.17"]
[White "Vega Gutierrez, Sabrina"]
[Black "Espinosa Aranda, Angel"]
[Result "1/2-1/2"]
[ECO "B56"]
[WhiteElo "2385"]
[BlackElo "2497"]
[Annotator "ChessBase"]
[PlyCount "119"]
[EventDate "2019.08.10"]
[EventType "swiss"]
[EventCountry "ESP"]
[SourceTitle "playchess.com"]
[Source "ChessBase"]
[SourceQuality "1"]
[TimeControl "5400+30"]

1. e4 {[%emt 0:00:00]} c5 {[%emt 0:00:00]} 2. Nf3 {[%emt 0:00:00]} d6 {[%emt 0:00:00]} 3. d4 {[%emt 0:00:00]} cxd4 {[%emt 0:00:01]} 4. Nxd4 {[%emt 0:00:00]} Nf6 {[%emt 0:00:07]} 5. Nc3 {[%emt 0:00:06]} Bd7 {[%emt 0:00:03]} 6. Bg5 {[%emt 0:00:46]} e6 {[%emt 0:00:05]} 7. Ndb5 {[%emt 0:00:24]} Bxb5 {[%emt 0:01:53]} 8. Bxb5+ {[%emt 0:00:28]} Nc6 {[%emt 0:00:03]} 9. Qf3 {[%emt 0:14:50]} Be7 {[%emt 0:00:05]} 10. e5 {[%emt 0:10:21]} Nd5 {[%emt 0:00:04]} 11. Bxc6+ {[%emt 0:10:02]} bxc6 {[%emt 0:00:53]} 12. Bxe7 {[%emt 0:00:06]} Qxe7 {[%emt 0:00:08]} 13. exd6 {[%emt 0:00:06]} Qxd6 {[%emt 0:00:04]} 14. O-O {[%emt 0:00:36]} O-O {[%emt 0:06:25]} 15. Ne4 {[%emt 0:03:58]} Qb4 {[%emt 0:05:23]} 16. b3 {[%emt 0:03:10]} f5 {[%emt 0:01:49]} 17. Ng3 {[%emt 0:04:26]} Qf4 {[%emt 0:11:13]} 18. Qxf4 {[%emt 0:04:41]} Nxf4 {[%emt 0:00:13]} 19. Rfd1 {[%emt 0:00:46]} Rfd8 {[%emt 0:03:40]} 20. Kf1 {[%emt 0:00:34]} Kf7 {[%emt 0:02:36]} 21. Ne2 {[%emt 0:00:27]} Nxe2 {[%emt 0:06:57]} 22. Kxe2 {[%emt 0:05:24]} e5 {[%emt 0:00:03]} 23. a4 {[%emt 0:01:27]} a5 {[%emt 0:02:05]} 24. f3 {[%emt 0:13:20]} Ke6 {[%emt 0:05:57]} 25. g4 {[%emt 0:02:07]} Rd5 {[%emt 0:09:17]} 26. gxf5+ {[%emt 0:05:01]} Kxf5 {[%emt 0:00:06]} 27. Rxd5 {[%emt 0:08:46]} cxd5 {[%emt 0:00:06]} 28. c3 {[%emt 0:00:04]} Rb8 {[%emt 0:02:41]} 29. b4 {[%emt 0:05:41]} axb4 {[%emt 0:00:22]} 30. cxb4 {[%emt 0:00:02]} Rxb4 {[%emt 0:00:06]} 31. a5 {[%emt 0:00:08]} Rb2+ {[%emt 0:00:50]} 32. Ke3 {[%emt 0:02:07]} Rb3+ {[%emt 0:01:19]} 33. Ke2 {[%emt 0:00:04]} Rb7 {[%emt 0:08:20]} 34. a6 {[%emt 0:00:02]} Ra7 {[%emt 0:00:05]} 35. Ke3 {[%emt 0:03:54]} g5 {[%emt 0:00:49]} 36. Ra5 {[%emt 0:00:26]} h5 {[%emt 0:00:27]} 37. h3 {[%emt 0:00:49]} d4+ {[%emt 0:01:52]} 38. Kf2 {[%emt 0:00:35]} Kf4 {[%emt 0:02:44]} 39. Ra4 {[%emt 0:00:02]} h4 {[%emt 0:06:19]} 40. Ra5 {[%emt 0:00:25]} g4 {[%emt 0:00:09]} 41. fxg4 {[%emt 0:02:00]} d3 {[%emt 0:00:04]} 42. Ra3 {[%emt 0:02:00]} e4 {[%emt 0:01:01]} 43. Ra4 {[%emt 0:00:03]} d2 {[%emt 0:01:04]} 44. Ke2 {[%emt 0:00:21]} Kg3 {[%emt 0:07:25]} 45. Ra3+ {[%emt 0:00:41]} Kg2 {[%emt 0:00:05]} 46. Kxd2 {[%emt 0:00:14]} Kf2 {[%emt 0:00:32]} 47. g5 {[%emt 0:01:27]} Rd7+ {[%emt 0:03:55]} 48. Kc2 {[%emt 0:00:15]} Rc7+ {[%emt 0:00:04]} 49. Kd2 {[%emt 0:00:29]} Rd7+ {[%emt 0:00:07]} 50. Kc2 {[%emt 0:00:01]} Rc7+ {[%emt 0:00:05]} 51. Kd2 {[%emt 0:01:14]} Rd7+ {[%emt 0:00:06]} 52. Kc2 {[%emt 0:00:04]} Rc7+ {[%emt 0:00:09]} 53. Kb2 {[%emt 0:00:57]} Ra7 {[%emt 0:00:04]} 54. g6 {[%emt 0:00:24]} e3 {[%emt 0:00:03]} 55. g7 {[%emt 0:00:31]} Rxg7 {[%emt 0:00:05]} 56. a7 {[%emt 0:00:08]} Rxa7 {[%emt 0:00:15]} 57. Rxa7 {[%emt 0:00:02]} e2 {[%emt 0:00:06]} 58. Rf7+ {[%emt 0:00:08]} Kg2 {[%emt 0:00:04]} 59. Re7 {[%emt 0:00:22]} Kf2 {[%emt 0:00:04]} 60. Rf7+ {[%emt 0:00:08]} 1/2-1/2

[Event "7th Iberoamerican-ch 2019"]
[Site "Linares"]
[Date "2019.08.16"]
[Round "7.18"]
[White "Guerrero Vargas, Andres Jesus"]
[Black "Garriga Cazorla, Pere"]
[Result "1/2-1/2"]
[ECO "B30"]
[WhiteElo "2342"]
[BlackElo "2495"]
[Annotator "ChessBase"]
[PlyCount "88"]
[EventDate "2019.08.10"]
[EventType "swiss"]
[EventCountry "ESP"]
[SourceTitle "playchess.com"]
[Source "ChessBase"]
[SourceQuality "1"]
[TimeControl "5400+30"]

1. e4 {[%emt 0:00:00]} c5 {[%emt 0:00:00]} 2. Nf3 {[%emt 0:00:02]} Nc6 {[%emt 0:00:59]} 3. c3 {[%emt 0:00:29]} Nf6 {[%emt 0:01:53]} 4. e5 {[%emt 0:00:06]} Nd5 {[%emt 0:00:01]} 5. Bc4 {[%emt 0:00:07]} Nb6 {[%emt 0:00:11]} 6. Bb3 {[%emt 0:00:01]} c4 {[%emt 0:01:30]} 7. Bc2 {[%emt 0:00:02]} d6 {[%emt 0:00:23]} 8. exd6 {[%emt 0:00:08]} e5 {[%emt 0:02:28]} 9. O-O {[%emt 0:14:59]} Bxd6 {[%emt 0:01:35]} 10. d3 {[%emt 0:00:01]} cxd3 {[%emt 0:06:20]} 11. Qxd3 {[%emt 0:00:09]} Qe7 {[%emt 0:00:05]} 12. Ng5 {[%emt 0:19:05]} Bd7 {[%emt 0:11:48]} 13. a4 {[%emt 0:07:11]} f5 {[%emt 0:04:50]} 14. Bb3 {[%emt 0:02:32]} e4 {[%emt 0:05:14]} 15. Qd1 {[%emt 0:00:40]} Ne5 {[%emt 0:02:35]} 16. a5 {[%emt 0:01:00]} Nbc4 {[%emt 0:01:23]} 17. f4 {[%emt 0:00:16]} exf3 {[%emt 0:07:41]} 18. Nxf3 {[%emt 0:00:02]} O-O-O {[%emt 0:00:07]} 19. Bxc4 {[%emt 0:00:28]} Nxc4 {[%emt 0:02:24]} 20. Bg5 {[%emt 0:00:46]} Bc5+ {[%emt 0:00:49]} 21. Kh1 {[%emt 0:00:21]} Qe6 {[%emt 0:02:08]} 22. Nd4 {[%emt 0:01:50]} Bxd4 {[%emt 0:00:12]} 23. cxd4 {[%emt 0:01:31]} Bc6 {[%emt 0:03:42]} 24. Nc3 {[%emt 0:02:45]} h6 {[%emt 0:14:55]} 25. d5 {[%emt 0:02:10]} Rxd5 {[%emt 0:02:35]} 26. Nxd5 {[%emt 0:01:38]} Bxd5 {[%emt 0:00:06]} 27. Qh5 {[%emt 0:13:25]} Qe4 {[%emt 0:05:42]} 28. Qh3 {[%emt 0:00:06]} Kd7 {[%emt 0:04:04]} 29. Rxf5 {[%emt 0:08:18]} Kc6 {[%emt 0:03:48]} 30. Rf4 {[%emt 0:02:54]} Qc2 {[%emt 0:02:36]} 31. Rxc4+ {[%emt 0:00:14]} Bxc4 {[%emt 0:00:46]} 32. Rc1 {[%emt 0:00:03]} Rf8 {[%emt 0:00:55]} 33. Qc8+ {[%emt 0:03:49]} Rxc8 {[%emt 0:02:53]} 34. Rxc2 {[%emt 0:00:01]} Kb5 {[%emt 0:00:12]} 35. Be3 {[%emt 0:00:12]} a6 {[%emt 0:00:59]} 36. b3 {[%emt 0:00:23]} Be6 {[%emt 0:00:04]} 37. Rxc8 {[%emt 0:00:02]} Bxc8 {[%emt 0:00:01]} 38. Bd2 {[%emt 0:00:01]} Be6 {[%emt 0:00:45]} 39. b4 {[%emt 0:00:02]} Kc4 {[%emt 0:00:41]} 40. Kg1 {[%emt 0:00:12]} Kd3 {[%emt 0:00:39]} 41. Bf4 {[%emt 0:00:13]} g5 {[%emt 0:01:33]} 42. Bd6 {[%emt 0:00:18]} Ke2 {[%emt 0:01:01]} 43. Bf8 {[%emt 0:00:17]} h5 {[%emt 0:00:52]} 44. Be7 {[%emt 0:00:01]} g4 {[%emt 0:00:08]} 1/2-1/2

[Event "7th Iberoamerican-ch 2019"]
[Site "Linares"]
[Date "2019.08.16"]
[Round "7.19"]
[White "Damaso, Rui"]
[Black "Esquivias Quintero, Luis Manuel"]
[Result "1-0"]
[ECO "A04"]
[WhiteElo "2417"]
[BlackElo "2282"]
[Annotator "NA"]
[PlyCount "77"]
[EventDate "2019.08.10"]
[EventType "swiss"]
[EventCountry "ESP"]
[SourceTitle "playchess.com"]
[Source "ChessBase"]
[SourceQuality "1"]
[TimeControl "5400+30"]

1. Nf3 {[%emt 0:00:00]} b6 {[%emt 0:00:08]} 2. e4 {[%emt 0:00:11]} Bb7 {[%emt 0:00:07]} 3. Nc3 {[%emt 0:00:13]} Nf6 {[%emt 0:00:09]} 4. e5 {[%emt 0:05:31]} Nd5 {[%emt 0:00:17]} 5. Bc4 {[%emt 0:03:41]} e6 {[%emt 0:00:25]} 6. Bxd5 {[%emt 0:00:49]} Bxd5 {[%emt 0:00:48]} 7. Nxd5 {[%emt 0:02:14]} exd5 {[%emt 0:00:05]} 8. O-O {[%emt 0:00:13]} Be7 {[%emt 0:04:51]} 9. Nd4 {[%emt 0:06:46]} Nc6 {[%emt 0:08:19]} 10. Nf5 {[%emt 0:05:41]} g6 {[%emt 0:01:51]} 11. Nxe7 {[%emt 0:07:04]} Qxe7 {[%emt 0:00:06]} 12. d4 {[%emt 0:00:56]} h6 {[%emt 0:04:04]} 13. a4 {[%emt 0:04:07]} Qe6 {[%emt 0:01:53]} 14. Ra3 {[%emt 0:00:38]} Ne7 {[%emt 0:26:29]} 15. Rf3 {[%emt 0:07:00]} Qc6 {[%emt 0:00:09]} 16. c3 {[%emt 0:08:51]} Nf5 {[%emt 0:00:13]} 17. g4 {[%emt 0:00:56]} Nh4 {[%emt 0:01:01]} 18. Rh3 {[%emt 0:01:40]} g5 {[%emt 0:01:50]} 19. f4 {[%emt 0:00:05]} Qg6 {[%emt 0:06:01]} 20. Qe2 {[%emt 0:04:02]} O-O-O {[%emt 0:01:26]} 21. f5 {[%emt 0:00:34]} Qc6 {[%emt 0:01:28]} 22. b3 {[%emt 0:01:15]} Rde8 {[%emt 0:02:20]} 23. Bd2 {[%emt 0:07:34]} Kb7 {[%emt 0:05:23]} 24. Re3 {[%emt 0:05:41]} Rh7 {[%emt 0:03:29]} 25. Be1 {[%emt 0:01:38]} h5 {[%emt 0:01:59]} 26. Bg3 {[%emt 0:03:48]} hxg4 {[%emt 0:07:36]} 27. Qxg4 {[%emt 0:00:08]} Qh6 {[%emt 0:00:12]} 28. c4 {[%emt 0:03:05]} c6 {[%emt 0:00:17]} 29. cxd5 {[%emt 0:00:14]} cxd5 {[%emt 0:00:05]} 30. Rc3 {[%emt 0:00:41]} Qh5 {[%emt 0:03:03]} 31. Qxh5 {[%emt 0:00:28]} Rxh5 {[%emt 0:00:02]} 32. e6 {[%emt 0:02:26]} dxe6 {[%emt 0:03:50]} 33. Rc7+ {[%emt 0:00:12]} Ka6 {[%emt 0:00:32]} 34. fxe6 {[%emt 0:03:07]} f5 {[%emt 0:00:21]} 35. e7 {[%emt 0:02:47]} f4 {[%emt 0:06:18]} 36. Bxh4 {[%emt 0:01:35]} Rxh4 {[%emt 0:02:40]} 37. b4 {[%emt 0:00:27]} Rh3 {[%emt 0:02:16]} 38. b5+ {[%emt 0:00:42]} Ka5 {[%emt 0:00:23]} 39. Rb1 {[%emt 0:00:06]} 1-0